fUSD/lending_fUSD_20250826
["ID","MTS","AMOUNT","RATE_DAILY","PERIOD"]
[381426357,1756193441943,-168.0,0.00017337,2]
[381426359,1756193441952,-458.7662338,0.0001734,2]
[381426361,1756193441962,-160.0,0.0001734,2]
[381426363,1756193441971,-160.0,0.0001734,2]
[381426365,1756193441981,-212.18043798,0.0001734,2]
[381426367,1756193441990,-844.63891918,0.0001734,2]
[381426369,1756193442002,-352.0,0.0001735,2]
[381426371,1756193442011,-500.0,0.00017352,2]
[381426373,1756193442020,-168.0,0.00017354,2]
[381426375,1756193442030,-500.0,0.00017388,2]
[381426377,1756193442039,-500.0,0.0001739,2]
[381426379,1756193442050,-500.0,0.00017428,2]
[381426381,1756193442059,-500.0,0.00017443,2]
[381426383,1756193442069,-500.0,0.00017466,2]
[381426385,1756193442079,-1500.0,0.00017468,2]
[381426387,1756193442090,-652.44285119,0.0001747,2]
[381426389,1756193442100,-1000.0,0.0001747,2]
[381426391,1756193442110,-1000.0,0.0001747,2]
[381426393,1756193442120,-435.27074847,0.00017492,2]
[381426395,1756193442130,-500.0,0.00017498,2]
[381426397,1756193442139,-1000.0,0.00017499,2]
[381426399,1756193442149,-2000.0,0.000175,2]
[381426401,1756193442158,-2000.0,0.000175,2]
[381426403,1756193442167,-2000.0,0.000175,2]
[381426405,1756193442177,-500.0,0.00017504,2]
[381426407,1756193442188,-500.0,0.00017542,2]
[381426409,1756193442198,-500.0,0.00017553,2]
[381426412,1756193442207,-500.0,0.0001758,2]
[381426414,1756193442217,-322.6107,0.00017592,2]
[381426416,1756193442227,-151.0,0.00017592,2]
[381426418,1756193442236,-152.56977486,0.00017592,2]
[381426420,1756193442246,-1000.0,0.00017592,2]
[381426422,1756193442258,-1000.0,0.00017592,2]
[381426424,1756193442267,-1000.0,0.00017592,2]
[381426426,1756193442277,-1000.0,0.00017592,2]
[381426428,1756193442286,-1000.0,0.00017592,2]
[381426430,1756193442295,-300.0,0.00017592,2]
[381426432,1756193442304,-267.46074303,0.00017592,2]
[381426434,1756193442314,-695.39793187,0.00017592,2]
[381426436,1756193442323,-1269.36,0.00017607,2]
[381426438,1756193442333,-500.0,0.00017608,2]
[381426440,1756193442342,-500.0,0.00017618,2]
[381426442,1756193442352,-150.0,0.00017648,2]
[381426444,1756193442361,-825.25889234,0.00017648,2]
[381426446,1756193442371,-150.0,0.00017648,2]
[381426448,1756193442381,-582.77158341,0.00017648,2]
[381426450,1756193442391,-150.0,0.00017648,2]
[381426452,1756193442400,-1593.81057441,0.00017648,2]
[381426454,1756193442411,-500.0,0.00017656,2]
[381426456,1756193442421,-210.83078363,0.00017661,2]
[381426458,1756193442430,-552.42508,0.00017663,2]
[381426460,1756193442439,-500.0,0.00017694,2]
[381426462,1756193442449,-250.0,0.00017699,2]
[381426464,1756193442461,-500.0,0.00017732,2]
[381426466,1756193442470,-500.0,0.0001777,2]
[381426468,1756193442480,-2006.48455946,0.000178,2]
[381426470,1756193442490,-500.0,0.00017808,2]
[381426472,1756193442501,-500.0,0.00017846,2]
[381426474,1756193442510,-12615.91,0.0001788,2]
[381426476,1756193442519,-500.0,0.00017884,2]
[381426477,1756193442529,-500.0,0.00017922,2]
[381426479,1756193442538,-468.94,0.00017928,2]
[381426481,1756193442552,-298.0,0.00017944,2]
[381426483,1756193442563,-500.0,0.0001796,2]
[381426485,1756193442573,-500.11651083,0.00017973,2]
[381426487,1756193442582,-528.57640829,0.00017973,2]
[381426489,1756193442593,-500.0,0.00017973,2]
[381426491,1756193442602,-500.0,0.00017973,2]
[381426493,1756193442612,-500.0,0.00017973,2]
[381426495,1756193442621,-500.0,0.00017973,2]
[381426497,1756193442631,-500.0,0.00017973,2]
[381426499,1756193442641,-500.0,0.00017973,2]
[381426501,1756193442650,-500.0,0.00017973,2]
[381426503,1756193442659,-500.0,0.00017973,2]
[381426505,1756193442668,-500.0,0.00017973,2]
[381426507,1756193442678,-500.0,0.00017973,2]
[381426509,1756193442687,-500.0,0.00017973,2]
[381426511,1756193442697,-500.0,0.00017973,2]
[381426513,1756193442706,-500.0,0.00017973,2]
[381426515,1756193442716,-500.0,0.00017973,2]
[381426517,1756193442725,-522.35770442,0.00017973,2]
[381426519,1756193442735,-500.09707482,0.00017973,2]
[381426521,1756193442744,-500.11200323,0.00017973,2]
[381426523,1756193442755,-276.25912775,0.00017973,2]
[381426525,1756193442765,-300.2994,0.00017973,2]
[381426527,1756193442774,-503.75114274,0.00017973,2]
[381426529,1756193442784,-164.23268451,0.00017973,2]
[381426531,1756193442793,-308.89739518,0.00017973,2]
[381426533,1756193442803,-500.0,0.00017973,2]
[381426535,1756193442813,-500.0,0.00017998,2]
[381426537,1756193442823,-300.0,0.00017999,2]
[381426539,1756193442832,-1071818.09775796,0.00018,2]
[381426541,1756193442842,-108740.87023231,0.00018,2]
[381426543,1756193442851,-151.0,0.00018,2]
[381426545,1756193442861,-12000.0,0.00018,2]
[381426547,1756193442871,-12000.0,0.00018,2]
[381426549,1756193442880,-160.976683,0.00018,2]
[381426551,1756193442889,-151.0,0.00018,2]
[381426553,1756193442900,-151.0,0.00018,2]
[381426555,1756193442909,-12000.0,0.00018,2]
[381426557,1756193442919,-160.976683,0.00018,2]
[381426559,1756193442928,-12000.0,0.00018,2]
[381426561,1756193442938,-160.976683,0.00018,2]
[381426563,1756193442947,-151.0,0.00018,2]
[381426565,1756193442956,-151.0,0.00018,2]
[381426567,1756193442966,-641.458658,0.00018,2]
[381426569,1756193442975,-155.658208,0.00018,2]
[381426571,1756193442985,-641.458658,0.00018,2]
[381426573,1756193442994,-160.976683,0.00018,2]
[381426575,1756193443004,-612.369938,0.00018,2]
[381426577,1756193443014,-155.658208,0.00018,2]
[381426579,1756193443023,-641.458658,0.00018,2]
[381426581,1756193443033,-612.369938,0.00018,2]
[381426583,1756193443043,-151.0,0.00018,2]
[381426585,1756193443053,-155.658208,0.00018,2]
[381426587,1756193443062,-641.458658,0.00018,2]
[381426589,1756193443072,-612.369938,0.00018,2]
[381426591,1756193443081,-151.0,0.00018,2]
[381426593,1756193443091,-155.658208,0.00018,2]
[381426595,1756193443101,-612.369938,0.00018,2]
[381426597,1756193443111,-1000.0,0.00018,2]
[381426599,1756193443121,-167.333849,0.00018,2]
[381426601,1756193443131,-151.0,0.00018,2]
[381426603,1756193443140,-151.0,0.00018,2]
[381426605,1756193443150,-151.0,0.00018,2]
[381426607,1756193443160,-151.0,0.00018,2]
[381426609,1756193443169,-151.0,0.00018,2]
[381426611,1756193443180,-151.0,0.00018,2]
[381426613,1756193443191,-151.0,0.00018,2]
[381426616,1756193443209,-151.0,0.00018,2]
[381426618,1756193443219,-152.267444,0.00018,2]
[381426620,1756193443231,-153.764942,0.00018,2]
[381426622,1756193443240,-151.0,0.00018,2]
[381426624,1756193443250,-250.404867,0.00018,2]
[381426626,1756193443259,-209.479942,0.00018,2]
[381426628,1756193443268,-151.0,0.00018,2]
[381426629,1756193443278,-179.573856,0.00018,2]
[381426630,1756193443288,-209.479942,0.00018,2]
[381426631,1756193443297,-151.0,0.00018,2]
[381426632,1756193443306,-179.573856,0.00018,2]
[381426633,1756193443316,-209.479942,0.00018,2]
[381426634,1756193443325,-151.0,0.00018,2]
[381426635,1756193443334,-151.713205,0.00018,2]
[381426636,1756193443344,-151.0,0.00018,2]
[381426637,1756193443353,-151.0,0.00018,2]
[381426638,1756193443363,-471.207843,0.00018,2]
[381426639,1756193443372,-151.0,0.00018,2]
[381426640,1756193443381,-209.479942,0.00018,2]
[381426641,1756193443391,-151.0,0.00018,2]
[381426642,1756193443400,-179.573856,0.00018,2]
[381426643,1756193443410,-471.207843,0.00018,2]
[381426644,1756193443428,-151.0,0.00018,2]
[381426645,1756193443445,-151.0,0.00018,2]
[381426647,1756193443459,-151.0,0.00018,2]
[381426649,1756193443471,-151.0,0.00018,2]
[381426652,1756193443484,-471.207843,0.00018,2]
[381426654,1756193443499,-179.573856,0.00018,2]
[381426657,1756193443512,-151.0,0.00018,2]
[381426659,1756193443526,-151.309327,0.00018,2]
[381426661,1756193443540,-151.0,0.00018,2]
[381426664,1756193443558,-471.207843,0.00018,2]
[381426666,1756193443571,-151.0,0.00018,2]
[381426669,1756193443583,-151.0,0.00018,2]
[381426671,1756193443597,-151.0,0.00018,2]
[381426673,1756193443612,-164.814542,0.00018,2]
[381426676,1756193443627,-151.0,0.00018,2]
[381426678,1756193443641,-304.14737,0.00018,2]
[381426681,1756193443655,-344.038603,0.00018,2]
[381426683,1756193443670,-151.0,0.00018,2]
[381426686,1756193443685,-304.14737,0.00018,2]
[381426688,1756193443699,-344.038603,0.00018,2]
[381426690,1756193443711,-304.14737,0.00018,2]
[381426693,1756193443726,-151.0,0.00018,2]
[381426695,1756193443739,-344.038603,0.00018,2]
[381426698,1756193443753,-304.14737,0.00018,2]
[381426700,1756193443767,-235.271444,0.00018,2]
[381426702,1756193443779,-344.038603,0.00018,2]
[381426705,1756193443793,-187.5147,0.00018,2]
[381426707,1756193443806,-293.876933,0.00018,2]
[381426710,1756193443822,-187.5147,0.00018,2]
[381426712,1756193443835,-293.876933,0.00018,2]
[381426715,1756193443849,-187.5147,0.00018,2]
[381426717,1756193443862,-293.876933,0.00018,2]
[381426719,1756193443873,-187.5147,0.00018,2]
[381426721,1756193443885,-2000.0,0.00018,2]
[381426724,1756193443897,-293.876933,0.00018,2]
[381426726,1756193443913,-1774.242245,0.00018,2]
[381426729,1756193443925,-1774.242245,0.00018,2]
[381426731,1756193443938,-1774.242245,0.00018,2]
[381426733,1756193443949,-1774.242245,0.00018,2]
[381426735,1756193443961,-2000.0,0.00018,2]
[381426738,1756193443978,-151.0,0.00018,2]
[381426740,1756193443993,-151.0,0.00018,2]
[381426742,1756193444004,-205.44637,0.00018,2]
[381426744,1756193444016,-151.0,0.00018,2]
[381426747,1756193444027,-151.0,0.00018,2]
[381426749,1756193444040,-205.44637,0.00018,2]
[381426751,1756193444052,-151.0,0.00018,2]
[381426753,1756193444063,-151.0,0.00018,2]
[381426756,1756193444076,-151.0,0.00018,2]
[381426758,1756193444088,-205.44637,0.00018,2]
[381426760,1756193444101,-151.0,0.00018,2]
[381426762,1756193444112,-151.0,0.00018,2]
[381426764,1756193444124,-205.44637,0.00018,2]
[381426766,1756193444135,-151.0,0.00018,2]
[381426769,1756193444147,-151.0,0.00018,2]
[381426771,1756193444159,-151.0,0.00018,2]
[381426773,1756193444171,-151.0,0.00018,2]
[381426775,1756193444184,-151.0,0.00018,2]
[381426778,1756193444197,-337.089608,0.00018,2]
[381426780,1756193444210,-151.0,0.00018,2]
[381426782,1756193444223,-337.089608,0.00018,2]
[381426786,1756193444253,-214.674022,0.00018,2]
[381426789,1756193444266,-198.945038,0.00018,2]
[381426791,1756193444277,-151.0,0.00018,2]
[381426793,1756193444289,-228.894384,0.00018,2]
[381426795,1756193444302,-337.089608,0.00018,2]
[381426798,1756193444314,-228.894384,0.00018,2]
[381426800,1756193444326,-151.0,0.00018,2]
[381426802,1756193444338,-228.170272,0.00018,2]
[381426804,1756193444350,-337.089608,0.00018,2]
[381426806,1756193444362,-228.170272,0.00018,2]
[381426809,1756193444374,-228.854135,0.00018,2]
[381426811,1756193444386,-1153.27828578,0.00018016,2]
[381426813,1756193444399,-2975.6727,0.0001802,2]
[381426814,1756193444412,-500.0,0.00018037,2]
[381426815,1756193444424,-806.73141447,0.00018052,2]
[381426816,1756193444437,-500.0,0.00018075,2]
[381426817,1756193444449,-160.0,0.00018083,7]
[381426818,1756193444462,-500.0,0.00018113,2]
[381426819,1756193444474,-298.0,0.00018119,2]
[381426820,1756193444486,-2000.0,0.00018136,2]
[381426821,1756193444499,-500.0,0.00018151,2]
[381426822,1756193444511,-496.32196716,0.00018154,2]
[381426823,1756193444523,-1329.03366518,0.00018156,2]
[381426824,1756193444535,-544.30532983,0.00018169,2]
[381426825,1756193444549,-500.0,0.0001817,2]
[381426826,1756193444563,-1000.0,0.0001817,2]
[381426827,1756193444575,-496.32196716,0.00018174,2]
[381426828,1756193444587,-42425.33808284,0.00018177,2]
[381426829,1756193444600,-829.127108,0.00018178,2]
[381426830,1756193444611,-9546.6277589,0.00018178,2]
[381426831,1756193444624,-46691.6861982,0.00018178,2]
[381426832,1756193444637,-437.5000001,0.00018178,2]
[381426833,1756193444649,-544.30532983,0.00018182,2]
[381426834,1756193444663,-43401.6674813,0.00018183,2]
[381426835,1756193444675,-500.0,0.00018189,2]
[381426836,1756193444688,-544.30532983,0.00018193,2]
[381426837,1756193444700,-42425.33808284,0.00018194,2]
[381426838,1756193444711,-1329.03366518,0.00018195,2]
[381426839,1756193444724,-496.32196716,0.00018196,2]
[381426840,1756193444736,-1233.14394472,0.00018196,2]
[381426841,1756193444748,-64.77265982,0.00018202,2]
[381426842,1756193444760,-200.0,0.00018202,2]
[381426843,1756193444772,-42425.33808284,0.00018203,2]
[381426844,1756193444784,-172.48767384,0.00018203,2]
[381426845,1756193444797,-12557.78504253,0.00018203,2]
[381426846,1756193444809,-981.20266809,0.00018207,2]
[381426847,1756193444820,-1150.93434842,0.00018207,2]
[381426848,1756193444832,-1069.00116009,0.00018207,2]
[381426850,1756193444844,-12483.37443028,0.00018208,2]
[381426852,1756193444856,-544.30532983,0.00018208,2]
[381426854,1756193444868,-1150.93434842,0.00018208,2]
[381426855,1756193444879,-1069.00116009,0.00018208,2]
[381426856,1756193444892,-1885.95642728,0.00018208,2]
[381426857,1756193444904,-12557.78504253,0.00018211,2]
[381426858,1756193444917,-12557.78504253,0.00018212,2]
[381426859,1756193444928,-1885.95642728,0.00018212,2]
[381426860,1756193444940,-534.50058003,0.00018213,2]
[381426861,1756193444952,-1150.93434842,0.00018214,2]
[381426862,1756193444965,-42425.33808284,0.00018215,2]
[381426863,1756193444978,-1150.93434842,0.00018216,2]
[381426864,1756193444990,-2828.93464094,0.00018218,2]
[381426865,1756193445002,-981.20266809,0.00018218,2]
[381426866,1756193445014,-1150.93434842,0.00018218,2]
[381426867,1756193445026,-534.50058004,0.00018219,2]
[381426868,1756193445038,-1233.14394472,0.00018219,2]
[381426869,1756193445049,-1603.50174015,0.00018221,2]
[381426870,1756193445061,-1603.50174015,0.00018221,2]
[381426871,1756193445073,-12557.78504253,0.00018223,2]
[381426872,1756193445085,-2828.93464094,0.00018224,2]
[381426873,1756193445097,-500.0,0.00018227,2]
[381426874,1756193445109,-1329.03366518,0.00018227,2]
[381426875,1756193445121,-496.32196716,0.00018228,2]
[381426876,1756193445133,-139901.06802834,0.00018229,2]
[381426877,1756193445144,-42425.33808284,0.0001823,2]
[381426878,1756193445156,-3101.07855214,0.00018232,2]
[381426879,1756193445168,-1150.93434842,0.00018232,2]
[381426880,1756193445180,-1069.00116009,0.00018234,2]
[381426881,1756193445191,-981.20266809,0.00018234,2]
[381426882,1756193445203,-1150.93434842,0.00018234,2]
[381426883,1756193445216,-1069.00116009,0.00018237,2]
[381426884,1756193445228,-1150.93434842,0.00018238,2]
[381426885,1756193445239,-352.0,0.0001824,2]
[381426886,1756193445251,-942.97821363,0.0001824,2]
[381426887,1756193445262,-1150.93434842,0.00018241,2]
[381426888,1756193445274,-172.48767384,0.00018241,2]
[381426889,1756193445285,-1603.50174015,0.00018241,2]
[381426890,1756193445296,-1150.93434842,0.00018242,2]
[381426891,1756193445308,-1885.95642728,0.00018243,2]
[381426892,1756193445320,-1150.93434842,0.00018244,2]
[381426893,1756193445332,-2325.8089141,0.00018245,2]
[381426894,1756193445344,-139901.06802834,0.00018245,2]
[381426895,1756193445356,-2828.93464094,0.00018245,2]
[381426896,1756193445367,-1150.93434842,0.00018247,2]
[381426897,1756193445379,-3452.80304532,0.00018248,2]
[381426898,1756193445390,-12483.37443028,0.00018249,2]
[381426899,1756193445401,-139901.06802834,0.0001825,2]
[381426900,1756193445412,-3101.07855214,0.00018251,2]
[381426901,1756193445424,-3101.07855214,0.00018253,2]
[381426902,1756193445436,-1233.14394472,0.00018253,2]
[381426903,1756193445447,-534.50058003,0.00018257,2]
[381426904,1756193445459,-298.0,0.00018258,2]
[381426905,1756193445471,-9900.32778389,0.00018259,2]
[381426906,1756193445482,-1885.95642728,0.0001826,2]
[381426907,1756193445493,-1150.93434842,0.0001826,2]
[381426908,1756193445504,-1150.93434842,0.0001826,2]
[381426909,1756193445515,-2325.8089141,0.0001826,2]
[381426910,1756193445527,-3452.80304532,0.00018262,2]
[381426911,1756193445538,-1150.93434842,0.00018263,2]
[381426912,1756193445549,-1150.93434842,0.00018264,2]
[381426913,1756193445564,-12483.37443028,0.00018264,2]
[381426914,1756193445575,-496.32196716,0.00018265,2]
[381426915,1756193445586,-500.0,0.00018265,2]
[381426916,1756193445600,-534.50058004,0.00018265,2]
[381426917,1756193445612,-942.97821363,0.00018266,2]
[381426918,1756193445622,-1233.14394472,0.00018266,2]
[381426919,1756193445635,-3452.80304532,0.00018266,2]
[381426920,1756193445646,-1150.93434842,0.00018267,2]
[381426921,1756193445657,-1329.03366518,0.0001827,2]
[381426922,1756193445669,-12483.37443028,0.0001827,2]
[381426923,1756193445683,-981.20266809,0.00018271,2]
[381426924,1756193445694,-3101.07855214,0.00018272,2]
[381426926,1756193445706,-981.20266809,0.00018274,2]
[381426928,1756193445717,-1885.95642728,0.00018275,2]
[381426931,1756193445729,-534.50058003,0.00018275,2]
[381426933,1756193445741,-1329.03366518,0.00018276,2]
[381426935,1756193445753,-942.97821363,0.00018276,2]
[381426937,1756193445765,-12557.78504253,0.00018276,2]
[381426939,1756193445776,-534.50058003,0.00018277,2]
[381426942,1756193445788,-12557.78504253,0.00018277,2]
[381426944,1756193445803,-534.50058003,0.00018277,2]
[381426946,1756193445816,-496.32196716,0.00018278,2]
[381426948,1756193445828,-1233.14394472,0.00018279,2]
[381426951,1756193445839,-496.32196716,0.00018279,2]
[381426953,1756193445850,-2828.93464094,0.00018279,2]
[381426955,1756193445861,-1069.00116009,0.0001828,2]
[381426957,1756193445874,-544.30532983,0.00018281,2]
[381426959,1756193445886,-544.30532983,0.00018281,2]
[381426962,1756193445899,-3452.80304532,0.00018281,2]
[381426964,1756193445910,-1000.0,0.00018281,2]
[381426966,1756193445922,-9900.32778389,0.00018282,2]
[381426968,1756193445933,-42425.33808284,0.00018284,2]
[381426971,1756193445945,-544.30532983,0.00018286,2]
[381426973,1756193445956,-42425.33808284,0.00018286,2]
[381426975,1756193445968,-1233.14394472,0.00018287,2]
[381426977,1756193445979,-1069.00116009,0.00018287,2]
[381426979,1756193445991,-1603.50174015,0.00018287,2]
[381426982,1756193446002,-1329.03366518,0.00018288,2]
[381426984,1756193446013,-534.50058004,0.00018288,2]
[381426986,1756193446024,-9900.32778389,0.00018289,2]
[381426988,1756193446037,-1329.03366518,0.00018289,2]
[381426990,1756193446049,-2828.93464094,0.00018293,2]
[381426993,1756193446061,-1233.14394472,0.00018294,2]
[381426995,1756193446072,-2828.93464094,0.00018294,2]
[381426997,1756193446086,-2828.93464094,0.00018296,2]
[381426999,1756193446097,-1150.93434842,0.00018298,2]
[381427001,1756193446108,-1885.95642728,0.00018299,2]
[381427003,1756193446120,-1603.50174015,0.00018299,2]
[381427006,1756193446131,-172.48767384,0.00018299,2]
[381427008,1756193446143,-500.0,0.00018303,2]
[381427010,1756193446154,-298.0,0.00018321,2]
[381427012,1756193446166,-298.0,0.00018336,2]
[381427015,1756193446178,-500.0,0.00018341,2]
[381427019,1756193446198,-298.0,0.00018341,2]
[381427022,1756193446217,-1073.73891,0.0001836,2]
[381427026,1756193446228,-500.0,0.00018379,2]
[381427028,1756193446239,-200.0,0.00018384,2]
[381427030,1756193446250,-110888.29666502,0.000184,2]
[381427034,1756193446261,-500.0,0.00018417,2]
[381427037,1756193446273,-168.0,0.00018431,2]
[381427119,1756193447497,-500.0,0.00018455,2]
[381427120,1756193447543,-168.0,0.0001846,2]
[381427121,1756193447577,-1017.0,0.00018466,2]
[381427122,1756193447613,-500.0,0.0001847,2]
[381427123,1756193447640,-1000.0,0.0001847,2]
[381427124,1756193447650,-168.0,0.00018486,2]
[381427125,1756193447660,-500.0,0.00018493,2]
[381427126,1756193447670,-168.0,0.00018517,2]
[381427127,1756193447680,-1000.0,0.00018521,2]
[381427128,1756193447690,-500.54614658,0.00018521,2]
[381427129,1756193447700,-1000.0,0.00018521,2]
[381427130,1756193447711,-1000.0,0.00018521,2]
[381427131,1756193447720,-1000.0,0.00018521,2]
[381427132,1756193447730,-1000.0,0.00018521,2]
[381427133,1756193447739,-500.45989624,0.00018521,2]
[381427134,1756193447750,-1000.0,0.00018521,2]
[381427135,1756193447760,-501.90964086,0.00018521,2]
[381427136,1756193447770,-1000.0,0.00018521,2]
[381427137,1756193447780,-1000.0,0.00018521,2]
[381427138,1756193447790,-1000.0,0.00018521,2]
[381427139,1756193447799,-447.08811952,0.00018521,2]
[381427140,1756193447809,-1000.0,0.00018521,2]
[381427141,1756193447818,-646.33270953,0.00018521,2]
[381427142,1756193447827,-500.0,0.00018531,2]
[381427143,1756193447836,-200.0,0.00018568,2]
[381427144,1756193447846,-500.0,0.00018569,2]
[381427145,1756193447855,-168.0,0.00018575,2]
[381427146,1756193447865,-500.0,0.00018607,2]
[381427147,1756193447874,-1073.73892,0.0001861,2]
[381427148,1756193447883,-168.0,0.00018614,2]
[381427149,1756193447892,-168.0,0.00018627,2]
[381427150,1756193447902,-1171.964419,0.0001863,2]
[381427151,1756193447911,-1171.964419,0.0001863,2]
[381427152,1756193447921,-1171.964419,0.0001863,2]
[381427153,1756193447931,-1171.964419,0.0001863,2]
[381427154,1756193447941,-168.0,0.00018636,2]
[381427155,1756193447950,-500.0,0.00018645,2]
[381427156,1756193447960,-298.0,0.00018662,2]
[381427157,1756193447969,-500.0,0.00018683,2]
[381427158,1756193447979,-500.0,0.00018721,2]
[381427159,1756193447989,-200.0,0.00018754,2]
[381427160,1756193447999,-500.0,0.0001876,2]
[381427161,1756193448010,-500.0,0.00018798,2]
[381427162,1756193448020,-20293.19435297,0.000188,2]
[381427163,1756193448032,-152.92,0.000188,2]
[381427164,1756193448042,-152.92,0.000188,2]
[381427165,1756193448052,-152.92,0.000188,2]
[381427166,1756193448062,-152.92,0.000188,2]
[381427167,1756193448072,-152.92,0.000188,2]
[381427168,1756193448082,-152.92,0.000188,2]
[381427169,1756193448091,-152.92,0.000188,2]
[381427170,1756193448101,-152.92,0.000188,2]
[381427171,1756193448110,-152.92,0.000188,2]
[381427172,1756193448120,-152.92,0.000188,2]
[381427173,1756193448130,-152.92,0.000188,2]
[381427174,1756193448140,-152.92,0.000188,2]
[381427175,1756193448150,-152.92,0.000188,2]
[381427176,1756193448160,-152.92,0.000188,2]
[381427177,1756193448170,-152.92,0.000188,2]
[381427178,1756193448179,-152.92,0.000188,2]
[381427179,1756193448189,-152.92,0.000188,2]
[381427180,1756193448199,-152.92,0.000188,2]
[381427181,1756193448208,-152.92,0.000188,2]
[381427182,1756193448218,-152.92,0.000188,2]
[381427183,1756193448228,-152.92,0.000188,2]
[381427184,1756193448237,-152.92,0.000188,2]
[381427185,1756193448247,-152.92,0.000188,2]
[381427186,1756193448258,-152.92,0.000188,2]
[381427187,1756193448267,-500.0,0.00018836,2]
[381427188,1756193448277,-1073.73892,0.0001886,2]
[381427189,1756193448287,-500.0,0.00018874,2]
[381427190,1756193448297,-190.65596206,0.000189,2]
[381427191,1756193448307,-872.66760971,0.000189,3]
[381427192,1756193448317,-150.21340694,0.00018904,5]
[381427193,1756193448328,-500.0,0.00018912,2]
[381427194,1756193448338,-298.0,0.00018935,2]
[381427195,1756193448348,-200.0,0.00018941,2]
[381427196,1756193448358,-500.0,0.0001895,2]
[381427197,1756193448368,-334.5472959,0.00018961,2]
[381427198,1756193448378,-277.35679052,0.00018961,2]
[381427199,1756193448388,-500.0,0.00018988,2]
[381427200,1756193448399,-5065.97553237,0.00019,2]
[381427201,1756193448408,-2000.0,0.00019,2]
[381427202,1756193448418,-15127.0,0.00019013,2]
[381427203,1756193448428,-500.0,0.00019026,2]
[381427204,1756193448438,-298.0,0.00019046,2]
[381427205,1756193448447,-500.0,0.00019064,2]
[381427206,1756193448457,-1500.0,0.00019068,2]
[381427207,1756193448467,-1500.0,0.00019068,2]
[381427208,1756193448477,-1500.0,0.00019068,2]
[381427209,1756193448488,-1606.40031721,0.00019068,2]
[381427210,1756193448498,-1500.0,0.00019068,2]
[381427211,1756193448509,-1500.0,0.00019068,2]
[381427212,1756193448519,-1500.0,0.00019068,2]
[381427213,1756193448530,-968.83319447,0.00019068,2]
[381427214,1756193448540,-1500.0,0.00019068,2]
[381427215,1756193448550,-1500.0,0.00019068,2]
[381427216,1756193448563,-2000.0,0.00019099,2]
[381427217,1756193448573,-500.0,0.00019102,2]
[381427218,1756193448582,-1073.73892,0.0001911,2]
[381427219,1756193448592,-352.0,0.0001913,2]
[381427220,1756193448602,-500.0,0.0001914,2]
[381427221,1756193448612,-298.0,0.00019159,2]
[381427222,1756193448621,-500.0,0.00019178,2]
[381427223,1756193448631,-500.0,0.00019178,2]
[381427224,1756193448641,-500.0,0.00019178,2]
[381427225,1756193448651,-500.0,0.00019178,2]
[381427226,1756193448660,-500.0,0.00019178,2]
[381427227,1756193448670,-500.0,0.00019178,2]
[381427228,1756193448679,-500.0,0.00019178,2]
[381427229,1756193448689,-500.0,0.00019178,2]
[381427230,1756193448698,-500.0,0.00019178,2]
[381427231,1756193448708,-500.0,0.00019178,2]
[381427232,1756193448717,-500.0,0.00019178,2]
[381427233,1756193448727,-500.0,0.00019178,2]
[381427234,1756193448737,-500.0,0.00019178,2]
[381427235,1756193448747,-500.0,0.00019178,2]
[381427236,1756193448756,-500.0,0.00019178,2]
[381427237,1756193448765,-500.0,0.00019178,2]